bitfinex/quotes_SOLUSD_20240703
["timestamp","ask_amount","ask_price","bid_price","bid_amount"]
[1720017441116,20.0,142.73,142.66,0.8596157]
[1720017442614,20.0,142.73,142.66,18.3837157]
[1720017442794,15.22803926,142.74,142.67,8.3580601]
[1720017442795,15.05803926,142.74,142.67,8.3580601]
[1720017443001,15.05803926,142.74,142.66,25.3932157]
[1720017443495,15.05803926,142.74,142.66,0.8596157]
[1720017443699,0.34,142.73,142.66,0.8596157]
[1720017443926,6.84351161,142.73,142.66,0.8596157]
[1720017444225,20.0,142.72,142.66,0.8596157]
[1720017444727,0.17,142.71,142.66,0.8596157]
[1720017445430,0.34,142.71,142.66,0.8596157]
[1720017448826,0.17,142.71,142.66,0.8596157]
[1720017450204,0.34,142.71,142.66,0.8596157]
[1720017451433,20.0,142.72,142.66,0.8596157]
[1720017451815,20.0,142.72,142.66,17.4096157]
[1720017451816,16.55,142.71,142.66,17.4096157]
[1720017452023,16.55,142.71,142.66,24.4190157]
[1720017452711,20.0,142.72,142.67,7.0089]
[1720017452919,36.55,142.72,142.67,23.5589]
[1720017453236,36.55,142.72,142.67,17.5227]
[1720017453237,16.55,142.71,142.67,17.5227]
[1720017453414,15.05803926,142.74,142.66,0.8596157]
[1720017453621,16.55,142.7,142.66,0.8596157]
[1720017454236,16.55,142.71,142.66,24.4191157]
[1720017454827,16.55,142.71,142.66,17.4096157]
[1720017455012,15.05803926,142.74,142.66,7.8692157]
[1720017455013,16.55,142.7,142.66,7.8692157]
[1720017455927,16.55,142.7,142.67,7.009]
[1720017456108,16.55,142.71,142.66,41.9427157]
[1720017456307,16.55,142.71,142.69,17.5204]
[1720017456520,19.45394899,142.77,142.7,16.55]
[1720017456712,6.50351161,142.77,142.71,23.557]
[1720017456925,23.05351161,142.77,142.71,23.557]
[1720017457139,16.55,142.77,142.72,16.55]
[1720017458016,16.55,142.77,142.72,16.55]
[1720017458205,16.55,142.77,142.72,17.95113325]
[1720017459030,7.28377649,142.8,142.72,17.95113325]
[1720017459220,16.55,142.77,142.72,17.95113325]
[1720017459835,16.55,142.77,142.72,16.55]
[1720017460925,16.55,142.77,142.71,8.40823159]
[1720017461129,16.55,142.77,142.71,23.5571]
[1720017461330,16.55,142.77,142.71,16.55]
[1720017461533,66.2,142.8,142.72,7.0064]
[1720017461733,20.0,142.79,142.73,1.40092177]
[1720017461926,36.55,142.79,142.74,1.40091723]
[1720017462244,36.55,142.79,142.73,16.55]
[1720017462740,36.55,142.79,142.74,16.55]
[1720017462741,20.0,142.79,142.74,16.55]
[1720017462938,16.55,142.79,142.74,16.55]
[1720017463135,16.55,142.79,142.74,24.95651644]
[1720017463439,16.55,142.8,142.75,16.55]
[1720017463640,16.55,142.8,142.74,16.55]
[1720017463850,16.55,142.8,142.75,16.55]
[1720017465744,14.97045844,142.83,142.75,23.5549]
[1720017465957,16.55,142.8,142.75,7.0049]
[1720017466123,16.55,142.81,142.76,16.55]
[1720017466322,20.0,142.8,142.76,16.55]
[1720017466724,19.70549086,142.85,142.78,23.5533]
[1720017466931,16.55,142.84,142.79,17.95045497]
[1720017467330,6.50351161,142.85,142.79,17.95045497]
[1720017467630,15.9185,142.88,142.8,17.95044815]
[1720017467832,6.50351161,142.89,142.82,16.55]
[1720017468057,16.55,142.87,142.82,17.95011479]
[1720017468424,14.19234888,142.91,142.82,16.55]
[1720017468636,16.55,142.88,142.82,16.55]
[1720017468971,16.55,142.88,142.83,1.40003305]
[1720017469124,20.0,142.87,142.82,16.55]
[1720017469825,20.0,142.87,142.81,24.5077]
[1720017470059,20.0,142.9,142.81,24.5077]
[1720017470557,20.0,142.9,142.8,7.0027]
[1720017470740,33.36,142.89,142.79,15.9018]
[1720017470931,20.0,142.88,142.79,15.9018]
[1720017471258,20.0,142.88,142.79,22.905]
[1720017471426,20.0,142.88,142.79,15.9018]
[1720017471632,0.34,142.87,142.79,15.9018]
[1720017472031,6.84351161,142.87,142.79,15.9018]
[1720017472232,20.0,142.86,142.79,15.9018]
[1720017472737,20.0,142.86,142.79,22.9049]
[1720017473260,0.17,142.85,142.79,22.9049]
[1720017473834,0.17,142.85,142.79,15.9018]
[1720017475271,0.34,142.85,142.79,22.9049]
[1720017476244,0.34,142.85,142.79,15.9018]
[1720017476444,0.34,142.85,142.79,22.905]
[1720017476963,0.17,142.85,142.79,15.9018]
[1720017477142,20.0,142.86,142.8,7.0027]
[1720017478772,20.0,142.86,142.79,33.4097]
[1720017478948,0.34,142.85,142.79,15.9018]
[1720017479577,0.34,142.85,142.79,22.905]
[1720017480546,20.0,142.86,142.8,7.0027]
[1720017481270,20.0,142.86,142.79,22.9049]
[1720017483267,20.0,142.86,142.78,24.5128]
[1720017483460,0.34,142.85,142.78,17.5092]
[1720017483662,0.34,142.85,142.77,13.2742]
[1720017483864,0.34,142.85,142.77,30.7848]
[1720017484681,0.34,142.85,142.78,7.0036]
[1720017485381,0.34,142.85,142.79,7.0031]
[1720017485549,0.17,142.85,142.8,7.0026]
[1720017485750,20.0,142.86,142.81,7.0022]
[1720017486168,20.0,142.86,142.8,7.0026]
[1720017486498,20.0,142.86,142.79,24.5108]
[1720017486786,20.0,142.86,142.79,17.5079]
[1720017487267,20.0,142.86,142.75,49.6616]
[1720017487268,59.52351161,142.86,142.76,17.5108]
[1720017487475,0.34,142.85,142.78,7.0036]
[1720017487671,20.34,142.85,142.78,7.0036]
[1720017487974,20.0,142.85,142.8,17.5065]
[1720017488168,20.0,142.85,142.81,7.0022]
[1720017488363,49.5837425,142.89,142.81,7.0022]
[1720017488364,20.0,142.88,142.81,7.0022]
[1720017489247,0.17,142.87,142.8,24.509]
[1720017489669,9.4564,142.89,142.82,17.5037]
[1720017489876,9.4564,142.89,142.83,1.40002332]
[1720017490282,9.2864,142.89,142.83,1.40002332]
[1720017490467,12.84761161,142.9,142.83,1.40002332]
[1720017490795,0.08170309,142.88,142.83,1.40002332]
[1720017490957,0.08170309,142.88,142.85,7.0002]
[1720017491291,0.08170309,142.88,142.86,0.78000018]
[1720017491458,0.08170309,142.88,142.86,1.39971132]
[1720017491788,0.08170309,142.88,142.86,17.89971132]
[1720017492076,0.08170309,142.88,142.84,16.5]
[1720017492263,0.08170309,142.88,142.82,7.0014]
[1720017492465,16.58170309,142.88,142.82,7.0014]
[1720017492657,16.58170309,142.88,142.83,23.5011]
[1720017492981,16.58170309,142.88,142.67,28.059003]
[1720017492982,100.0,142.79,142.67,28.059003]
[1720017493162,200.0,142.75,142.56,43.4487]
[1720017493486,16.5,142.63,142.58,7.0133]
[1720017493772,20.0,142.63,142.54,17.5386]
[1720017494004,16.5,142.57,142.52,23.516]
[1720017494288,16.5,142.57,142.52,16.5]
[1720017494474,16.5,142.57,142.51,6.3707]
[1720017494779,16.5,142.56,142.51,22.8707]
[1720017494953,16.5,142.57,142.51,6.3707]
[1720017495156,20.0,142.62,142.56,7.0144]
[1720017495376,14.31293763,142.68,142.58,23.5133]
[1720017495377,16.5,142.63,142.58,23.5133]
[1720017495680,20.0,142.67,142.61,16.5]
[1720017495863,20.0,142.68,142.6,7.0125]
[1720017496060,20.0,142.68,142.57,17.5342]
[1720017496259,0.17,142.67,142.57,38.6242]
[1720017496465,20.0,142.68,142.57,38.6242]
[1720017496664,20.0,142.68,142.6,7.0125]
[1720017497167,20.0,142.68,142.58,7.0131]
[1720017497375,0.34,142.67,142.58,7.0131]
[1720017497678,0.17,142.67,142.58,7.0131]
[1720017497880,20.0,142.68,142.58,7.0131]
[1720017498484,20.0,142.68,142.58,28.1031]
[1720017499371,7.28741518,142.69,142.59,21.09]
[1720017499575,13.61407935,142.73,142.61,7.012]
[1720017499779,13.61407935,142.73,142.59,17.5318]
[1720017499965,13.61407935,142.73,142.59,24.5444]
[1720017500285,13.61407935,142.73,142.6,7.0124]
[1720017500578,13.61407935,142.73,142.62,7.0116]
[1720017500762,13.61407935,142.73,142.61,7.012]
[1720017501158,13.61407935,142.73,142.62,7.0116]
[1720017501357,13.61407935,142.73,142.63,7.011]
[1720017501667,6.4936,142.73,142.62,7.0115]
[1720017501863,6.4936,142.73,142.63,7.011]
[1720017502269,20.0,142.72,142.62,7.0115]
[1720017502686,0.17,142.71,142.63,7.011]
[1720017502982,0.17,142.71,142.62,7.0115]
[1720017504393,0.17,142.71,142.63,7.011]
[1720017505590,0.17,142.71,142.58,56.1568]
[1720017505888,0.17,142.71,142.64,7.0103]
[1720017506092,6.6636,142.73,142.64,7.0103]
[1720017506093,0.17,142.73,142.64,7.0103]
[1720017506287,0.34,142.73,142.64,7.0103]
[1720017507191,0.34,142.73,142.62,17.5281]
[1720017507387,0.17,142.73,142.63,7.0111]
[1720017507589,0.34,142.74,142.62,24.5397]
[1720017508495,0.34,142.74,142.63,7.011]
[1720017509373,0.34,142.74,142.59,21.09]
[1720017509374,7.46047935,142.74,142.59,38.6221]
[1720017509691,27.12047935,142.73,142.62,7.0112]
[1720017509889,0.34,142.72,142.61,17.5299]
[1720017510091,37.26,142.67,142.54,24.5532]
[1720017510390,37.26,142.67,142.51,24.5588]
[1720017510391,0.34,142.66,142.51,24.5588]
[1720017510578,20.34,142.66,142.53,7.016]
[1720017511094,20.34,142.66,142.54,7.0155]
[1720017511294,20.34,142.66,142.53,24.5558]
[1720017511483,27.05434079,142.66,142.53,17.5398]
[1720017511682,27.05434079,142.66,142.53,24.5558]
[1720017511883,27.05434079,142.66,142.54,7.0155]
[1720017512278,27.05434079,142.66,142.55,17.5373]
[1720017512472,14.43954754,142.71,142.55,21.09]
[1720017512673,14.43954754,142.71,142.59,17.5324]
[1720017513183,14.43954754,142.71,142.58,7.0134]
[1720017513796,0.34,142.7,142.58,7.0134]
[1720017513999,20.34,142.7,142.57,7.0139]
[1720017514189,20.34,142.7,142.56,24.5501]
[1720017514394,27.05434079,142.7,142.53,38.6296]
[1720017514579,82.26,142.69,142.55,7.0149]
[1720017514784,20.34,142.68,142.55,24.5522]
[1720017515091,27.05434079,142.68,142.55,24.5522]
[1720017515295,6.71434079,142.67,142.55,17.5373]
[1720017515588,20.34,142.66,142.55,17.5373]
[1720017515794,20.34,142.66,142.55,24.5523]
[1720017515972,20.34,142.66,142.56,7.0144]
[1720017516174,20.34,142.66,142.56,7.0141]
[1720017516374,0.34,142.66,142.56,7.0141]
[1720017517789,0.34,142.66,142.57,7.014]
[1720017518105,0.34,142.66,142.56,17.5361]
[1720017518484,0.34,142.66,142.56,24.5502]
[1720017518802,0.34,142.66,142.57,7.014]
[1720017518987,0.34,142.66,142.58,7.0135]
[1720017519494,0.34,142.66,142.57,7.014]
[1720017519887,0.34,142.66,142.58,7.0134]
[1720017520096,0.34,142.66,142.57,7.0139]
[1720017520482,20.0,142.69,142.58,7.0134]
[1720017520799,20.0,142.69,142.58,17.5335]
[1720017521002,20.0,142.69,142.55,17.5368]
[1720017521206,26.71434079,142.69,142.55,17.5368]
[1720017521698,6.88434079,142.68,142.55,24.5515]
[1720017521896,20.17,142.67,142.56,7.0144]
[1720017522094,0.17,142.66,142.57,7.014]
[1720017522401,0.17,142.66,142.56,7.0144]
[1720017522898,0.17,142.66,142.55,17.5368]
[1720017523101,0.17,142.66,142.55,24.5515]
[1720017523399,80.10474079,142.65,142.5,7.017]
[1720017523577,95.21355753,142.65,142.52,7.0165]
[1720017523782,20.34,142.64,142.53,7.0158]
[1720017523984,20.34,142.64,142.53,17.5394]
[1720017524301,20.34,142.64,142.54,7.0154]
[1720017524480,20.34,142.64,142.54,17.5384]
[1720017525303,20.34,142.64,142.54,24.5536]
[1720017525499,20.0,142.64,142.55,1.40272682]
[1720017525691,20.0,142.64,142.56,7.0142]
[1720017525892,20.0,142.64,142.57,7.014]
[1720017527484,6.1304,142.65,142.56,17.5361]
[1720017527712,6.1304,142.65,142.58,7.0132]
[1720017528089,6.0594,142.69,142.6,7.0125]
[1720017528388,6.0594,142.69,142.6,17.5307]
[1720017528594,6.0594,142.69,142.61,7.0117]
[1720017528904,6.0594,142.69,142.6,24.5431]
[1720017529603,6.0594,142.69,142.61,7.012]
[1720017529796,6.0594,142.69,142.62,7.0115]
[1720017529995,6.0594,142.69,142.63,7.011]
[1720017530302,6.0594,142.69,142.61,7.012]
[1720017531525,6.0594,142.69,142.61,17.5299]
[1720017533496,6.0594,142.69,142.61,24.542]
[1720017533900,6.0594,142.69,142.62,7.0115]
[1720017534705,6.0594,142.69,142.63,1.40198108]
[1720017534906,6.0594,142.69,142.63,8.41288108]
[1720017535290,6.0594,142.69,142.63,7.011]
[1720017535490,28.088133,142.78,142.67,21.09]
[1720017535692,6.0833,142.82,142.72,17.5165]
[1720017535998,6.0833,142.82,142.68,0.17]
[1720017535999,6.0833,142.82,142.69,17.5198]
[1720017536200,6.0833,142.82,142.71,17.5178]
[1720017536401,6.0833,142.82,142.72,7.0065]
[1720017536707,6.0833,142.82,142.73,7.0061]
[1720017536905,6.0833,142.82,142.71,24.5245]
[1720017537088,6.0833,142.82,142.71,17.5178]
[1720017537285,6.0833,142.82,142.73,17.5153]
[1720017537611,6.0833,142.82,142.75,7.0052]
[1720017538800,6.0833,142.82,142.65,121.09]
[1720017538801,0.489,142.72,142.49,21.5357]
[1720017539003,37.26,142.69,142.49,21.5357]
[1720017539210,29.14491007,142.68,142.49,21.5357]
[1720017539510,0.17,142.67,142.49,21.5357]
[1720017539718,9.14491007,142.67,142.5,21.09]
[1720017539911,29.14491007,142.66,142.5,21.09]
[1720017540116,8.97491007,142.66,142.5,21.09]
[1720017540411,49.20981616,142.65,142.5,21.09]
[1720017540714,20.0,142.65,142.5,21.09]
[1720017540891,30.8652434,142.65,142.5,21.09]
[1720017541095,17.51975203,142.64,142.5,21.09]
[1720017541392,20.0,142.63,142.5,21.09]
[1720017541808,20.0,142.63,142.51,0.34]
[1720017542112,20.0,142.63,142.5,21.09]
[1720017543315,20.0,142.63,142.51,0.34]
[1720017543511,0.17,142.66,142.51,0.34]
[1720017543712,0.34,142.67,142.49,21.5357]
[1720017543914,37.26,142.64,142.49,42.6257]
[1720017544215,20.17,142.63,142.49,42.6257]
[1720017544406,0.17,142.62,142.49,42.6257]
[1720017546417,0.17,142.62,142.5,0.17]
[1720017547330,0.17,142.62,142.48,0.8515655]
[1720017550304,0.17,142.62,142.49,0.17]
[1720017550928,0.17,142.62,142.48,0.8515655]
[1720017552226,0.17,142.62,142.49,1.25937958]
[1720017552415,0.17,142.62,142.49,0.34]
[1720017554051,0.17,142.62,142.48,0.8515655]
[1720017555120,0.17,142.62,142.49,0.17]
[1720017556246,0.17,142.62,142.48,0.8515655]
[1720017556733,0.17,142.62,142.49,0.17]
[1720017556919,37.26,142.57,142.48,0.8515655]
[1720017557116,37.26,142.53,142.48,0.8515655]
[1720017557425,0.34,142.52,142.48,0.8515655]
[1720017557629,20.34,142.52,142.48,0.8515655]
[1720017558014,20.17,142.52,142.48,0.8515655]
[1720017558619,20.0,142.52,142.48,0.8515655]
[1720017559025,0.489,142.55,142.48,0.8515655]
[1720017559224,0.17,142.54,142.48,0.8515655]
[1720017559424,0.34,142.54,142.48,0.8515655]
[1720017560009,0.17,142.54,142.48,0.8515655]
[1720017560239,0.489,142.55,142.48,0.8515655]
[1720017560738,0.17,142.54,142.48,0.8515655]
[1720017560916,0.34,142.54,142.48,0.8515655]
[1720017563452,0.17,142.54,142.48,0.8515655]
[1720017564137,0.34,142.54,142.48,0.8515655]
[1720017564313,0.17,142.54,142.48,0.8515655]
[1720017564738,0.489,142.55,142.48,0.8515655]
[1720017566236,0.17,142.54,142.48,0.8515655]
[1720017566432,0.34,142.54,142.48,0.8515655]
[1720017569832,40.0,142.56,142.48,0.8515655]
[1720017570033,0.489,142.6,142.48,0.8515655]
[1720017570337,42.78085954,142.59,142.48,0.8515655]
[1720017570837,8.28727708,142.58,142.48,0.8515655]
[1720017571422,20.0,142.57,142.48,0.8515655]
[1720017571638,8.62727708,142.56,142.48,0.8515655]
[1720017571814,20.0,142.55,142.48,0.8515655]
[1720017572018,0.17,142.54,142.48,0.8515655]
[1720017572635,28.28727708,142.55,142.48,0.8515655]
[1720017574022,0.17,142.54,142.48,0.8515655]
[1720017574223,37.26,142.5,142.25,101.2211823]
[1720017574545,37.26,142.46,142.33,7.05599711]
[1720017574845,45.32612041,142.53,142.33,7.05599711]
[1720017575046,20.17,142.52,142.33,7.05599711]
[1720017575337,0.17,142.51,142.34,21.09]
[1720017575545,20.17,142.52,142.34,21.09]
[1720017575546,20.17,142.52,142.36,20.09]
[1720017575726,20.0,142.56,142.38,20.09]
[1720017575922,7.66283263,142.55,142.38,20.09]
[1720017576126,20.17,142.54,142.38,20.09]
[1720017576345,0.17,142.53,142.38,20.09]
[1720017576645,0.17,142.53,142.39,0.17]
[1720017577155,7.66283263,142.53,142.37,27.5496]
[1720017577445,0.17,142.52,142.37,27.5496]
[1720017577623,37.26,142.42,142.33,0.89319711]
[1720017577824,0.34,142.41,142.33,0.89319711]
[1720017578218,20.34,142.41,142.33,0.89319711]
[1720017578423,37.26,142.37,142.33,0.89319711]
[1720017578639,20.17,142.36,142.33,0.89319711]
[1720017578828,20.0,142.36,142.33,0.89319711]
[1720017579743,20.0,142.4,142.33,0.89319711]
[1720017579931,100.0,142.52,142.34,6.5739]
[1720017580132,37.26,142.48,142.34,6.5739]
[1720017580727,37.26,142.48,142.34,27.6639]
[1720017580939,37.26,142.48,142.34,6.5739]
[1720017581133,37.26,142.48,142.35,16.4887]
[1720017581344,6.28229876,142.51,142.35,16.4887]
[1720017581553,6.28229876,142.51,142.35,37.5787]
[1720017583242,20.0,142.5,142.35,37.5787]
[1720017583747,0.34,142.49,142.35,37.5787]
[1720017584335,0.34,142.49,142.35,16.4887]
[1720017585262,6.62229876,142.49,142.35,16.4887]
[1720017585555,20.0,142.48,142.35,16.4887]
[1720017585751,0.34,142.47,142.35,16.4887]
[1720017586750,20.0,142.48,142.35,37.5787]
[1720017586954,20.0,142.48,142.35,16.4887]
[1720017587656,20.0,142.48,142.35,37.5787]
[1720017589358,20.0,142.48,142.36,0.34]
[1720017589739,20.0,142.51,142.36,0.17]
[1720017590351,0.17,142.5,142.36,0.17]
[1720017590656,100.0,142.43,142.33,0.89319711]
[1720017590954,37.26,142.37,142.19,7.1550655]
[1720017591154,28.07897567,142.36,142.19,7.1550655]
[1720017591338,0.17,142.35,142.19,7.1550655]
[1720017591759,8.24897567,142.35,142.2,21.09]
[1720017591953,20.17,142.34,142.2,21.09]
[1720017592339,37.26,142.32,142.19,7.1550655]
[1720017592554,28.41897567,142.31,142.19,7.1550655]
[1720017592745,28.41897567,142.31,142.2,1.4060953]
[1720017592947,28.41897567,142.31,142.21,1.40595041]
[1720017593442,45.07627567,142.31,142.22,1.40595591]
[1720017593960,45.07627567,142.31,142.19,7.1550655]
[1720017594460,7.3853898,142.37,142.2,21.09]
[1720017594636,7.3853898,142.37,142.21,1.40559147]
[1720017595063,7.3853898,142.37,142.2,21.09]
[1720017595557,28.4753898,142.37,142.2,21.09]
[1720017595757,66.13,142.36,142.2,21.09]
[1720017596340,66.13,142.36,142.21,0.17]
[1720017596569,66.13,142.36,142.21,0.34]
[1720017596842,73.27507011,142.36,142.21,0.34]
[1720017597966,72.93507011,142.36,142.21,0.34]
[1720017599239,0.34,142.35,142.21,0.34]
[1720017601378,65.79,142.36,142.21,0.34]
[1720017602279,21.09,142.4,142.25,21.09]
[1720017602456,45.79,142.44,142.25,21.09]
[1720017602660,45.79,142.44,142.26,0.34]
[1720017602893,45.79,142.4,142.24,6.4202]
[1720017603455,20.0,142.39,142.24,6.4202]
[1720017603790,0.17,142.38,142.24,6.4202]
[1720017604088,20.0,142.39,142.25,1.10545935]
[1720017604282,20.0,142.39,142.26,0.17]
[1720017604582,20.0,142.39,142.25,0.34]
[1720017605076,20.0,142.39,142.26,1.40521489]
[1720017605275,20.0,142.42,142.27,0.34]
[1720017605879,6.74062567,142.43,142.29,27.6288]
[1720017606167,51.49426847,142.45,142.3,0.17]
[1720017606475,45.79,142.45,142.3,0.17]
[1720017606656,45.79,142.45,142.3,1.7440622]
[1720017606856,45.79,142.45,142.3,0.34]
[1720017607887,52.53062567,142.47,142.3,0.34]
[1720017608288,52.53062567,142.47,142.32,21.09]
[1720017608589,52.53062567,142.47,142.31,42.4706]
[1720017609274,52.53062567,142.47,142.32,0.34]
[1720017609685,20.34,142.46,142.32,0.34]
[1720017610482,20.0,142.46,142.32,0.34]
[1720017612075,0.34,142.45,142.32,0.34]
[1720017612790,0.17,142.45,142.32,0.34]
[1720017614010,20.0,142.46,142.33,1.40444486]
[1720017614171,20.0,142.46,142.34,0.34]
[1720017614371,20.0,142.46,142.31,42.4706]
[1720017614574,20.0,142.46,142.32,0.34]
[1720017614901,0.17,142.45,142.32,0.34]
[1720017615099,20.0,142.46,142.32,0.34]
[1720017615697,20.0,142.46,142.33,1.40433595]
[1720017615897,20.0,142.46,142.35,6.0846]
[1720017617799,20.0,142.46,142.36,16.0214]
[1720017618018,20.0,142.49,142.36,16.0214]
[1720017618207,0.17,142.48,142.36,16.0214]
[1720017618703,0.34,142.49,142.36,16.0214]
[1720017619216,100.0,142.41,142.27,21.4772]
[1720017619498,37.38,142.38,142.27,21.4772]
[1720017619700,20.0,142.37,142.27,21.4772]
[1720017620289,0.17,142.38,142.27,21.4772]
[1720017621782,0.17,142.4,142.27,21.4772]
[1720017622180,0.34,142.4,142.27,21.4772]
[1720017622384,0.17,142.4,142.27,42.5672]
[1720017622591,0.17,142.41,142.27,42.5672]
[1720017622806,0.17,142.41,142.28,0.34]
[1720017622807,0.34,142.41,142.28,0.34]
[1720017622978,0.17,142.41,142.28,0.34]
[1720017624314,20.0,142.44,142.29,27.4313]
[1720017625177,37.38,142.42,142.29,6.3413]
[1720017625625,20.34,142.41,142.29,6.3413]
[1720017625824,37.38,142.4,142.29,6.3413]
[1720017626023,20.34,142.39,142.29,6.3413]
[1720017626729,20.17,142.39,142.29,6.3413]
[1720017628410,0.17,142.38,142.29,6.3413]
[1720017631532,37.38,142.36,142.27,15.1546]
[1720017631829,37.38,142.36,142.24,6.1471]
[1720017631830,20.34,142.35,142.24,6.1471]
[1720017632001,27.81440618,142.35,142.24,6.1471]
[1720017632435,27.64440618,142.35,142.24,6.1471]
[1720017632627,0.17,142.34,142.24,6.1471]
[1720017635100,0.17,142.34,142.21,16.1414]
[1720017637537,0.17,142.34,142.22,1.40586217]
[1720017637737,27.47440618,142.35,142.22,1.40586217]
[1720017637938,27.47440618,142.35,142.21,16.1414]
[1720017638138,7.47440618,142.35,142.21,37.2314]
[1720017638645,44.85440618,142.38,142.21,37.2314]
[1720017638818,44.85440618,142.38,142.22,0.34]
[1720017639639,20.0,142.37,142.22,0.34]
[1720017640132,27.47440618,142.37,142.22,0.34]
[1720017640306,0.34,142.36,142.22,0.34]
[1720017644950,7.81440618,142.36,142.22,0.34]
[1720017645122,20.0,142.35,142.22,0.34]
[1720017649784,33.29,142.34,142.22,0.34]
[1720017650070,20.0,142.33,142.22,0.34]
[1720017651069,20.0,142.33,142.23,21.09]
[1720017651368,20.0,142.35,142.24,0.34]
[1720017652143,27.47440618,142.35,142.22,21.09]
[1720017652447,27.47440618,142.35,142.23,0.17]
[1720017653651,27.47440618,142.35,142.22,0.17]
[1720017654151,27.47440618,142.35,142.22,0.34]
[1720017660151,27.47440618,142.35,142.2,27.1618]
[1720017660346,33.29,142.32,142.2,27.1618]
[1720017660659,20.0,142.31,142.2,27.1618]
[1720017661252,7.47440618,142.34,142.22,21.09]
[1720017661459,20.0,142.33,142.23,0.17]
[1720017661678,20.0,142.33,142.23,0.34]
[1720017662579,33.29,142.38,142.23,0.34]
[1720017662873,33.29,142.38,142.24,21.09]
[1720017663054,33.29,142.38,142.25,0.34]
[1720017663655,20.0,142.37,142.25,0.34]
[1720017664758,8.59159676,142.39,142.27,21.09]
[1720017664953,100.0,142.51,142.3,21.09]
[1720017665254,100.0,142.51,142.29,33.29]
[1720017665255,33.29,142.45,142.31,54.72]
[1720017666068,33.29,142.45,142.32,1.40453206]
[1720017666278,33.29,142.48,142.34,43.3628]
[1720017666473,33.29,142.48,142.35,0.17]
[1720017666664,33.29,142.48,142.35,0.34]
[1720017667671,33.29,142.48,142.35,0.17]
[1720017667969,20.0,142.47,142.35,0.17]
[1720017668566,20.0,142.47,142.34,22.2728]
[1720017668767,0.34,142.46,142.34,22.2728]
[1720017669772,20.0,142.47,142.35,0.17]
[1720017670365,0.17,142.48,142.35,0.34]
[1720017670555,53.29,142.5,142.36,54.38]
[1720017670759,53.29,142.5,142.37,0.17]
[1720017671860,0.17,142.49,142.37,0.17]
[1720017672283,0.34,142.49,142.37,0.17]
[1720017672665,0.34,142.49,142.36,33.29]
[1720017676181,0.34,142.49,142.35,0.17]
[1720017679666,5.66265883,142.51,142.39,37.3211]
[1720017679872,33.29,142.59,142.44,33.29]
[1720017680175,2.70170673,142.58,142.46,6.0308]
[1720017680378,33.29,142.59,142.46,6.0308]
[1720017681386,28.117985,142.63,142.47,16.2888]
[1720017681570,33.29,142.61,142.47,49.5788]
[1720017681981,2.70157009,142.6,142.47,49.5788]
[1720017683790,33.29,142.61,142.47,49.5788]
[1720017684084,138.86107294,142.64,142.47,49.5788]
[1720017684968,20.0,142.63,142.47,49.5788]
[1720017685285,0.34,142.62,142.47,49.5788]